fUSD/lending_fUSD_20250629
["ID","MTS","AMOUNT","RATE_DAILY","PERIOD"]
[368472728,1751189438354,-11255.0759529,0.00027397,4]
[368472730,1751189438363,-470180.73552884,0.00027397,4]
[368472732,1751189438372,-1670.68424236,0.00027397,2]
[368472734,1751189438383,-490.0,0.00027397,3]
[368472736,1751189438392,-736.51,0.00027397,3]
[368472738,1751189438401,-490.0,0.00027397,3]
[368472740,1751189438411,-900.85,0.00027397,3]
[368472742,1751189438420,-490.0,0.00027397,3]
[368472744,1751189438429,-490.0,0.00027397,3]
[368472746,1751189438438,-496.58996295,0.00027397,3]
[368472748,1751189438447,-490.0,0.00027397,3]
[368472750,1751189438457,-490.0,0.00027397,3]
[368472752,1751189438467,-490.0,0.00027397,3]
[368472755,1751189438477,-490.0,0.00027397,3]
[368472757,1751189438487,-490.0,0.00027397,3]
[368472759,1751189438496,-1027.26,0.00027397,3]
[368472761,1751189438506,-2908.954241,0.00027397,3]
[368472763,1751189438515,-790.26,0.00027397,3]
[368472765,1751189438524,-490.0,0.00027397,3]
[368472767,1751189438533,-2275.369949,0.00027397,3]
[368472769,1751189438543,-158.454063,0.00027397,3]
[368472771,1751189438552,-583.56,0.00027397,3]
[368472773,1751189438561,-151.887036,0.00027397,3]
[368472775,1751189438570,-490.0,0.00027397,3]
[368472777,1751189438580,-513.30151379,0.00027397,3]
[368472778,1751189438590,-1110.1,0.00027397,3]
[368472780,1751189438599,-490.0,0.00027397,3]
[368472782,1751189438608,-490.0,0.00027397,3]
[368472785,1751189438619,-490.0,0.00027397,3]
[368472786,1751189438628,-490.0,0.00027397,3]
[368472788,1751189438638,-535.93,0.00027397,3]
[368472791,1751189438648,-490.0,0.00027397,3]
[368472793,1751189438657,-490.0,0.00027397,3]
[368472795,1751189438666,-490.0,0.00027397,3]
[368472797,1751189438675,-490.0,0.00027397,3]
[368472799,1751189438684,-490.0,0.00027397,3]
[368472800,1751189438693,-490.0,0.00027397,3]
[368472803,1751189438703,-490.0,0.00027397,3]
[368472805,1751189438712,-490.0,0.00027397,3]
[368472807,1751189438722,-490.0,0.00027397,3]
[368472809,1751189438731,-490.0,0.00027397,3]
[368472810,1751189438740,-490.0,0.00027397,3]
[368472812,1751189438749,-257.97836632,0.00027397,3]
[368472814,1751189438759,-490.0,0.00027397,3]
[368472816,1751189438768,-553.18,0.00027397,3]
[368472818,1751189438777,-780.93,0.00027397,3]
[368472820,1751189438786,-490.0,0.00027397,3]
[368472822,1751189438796,-907.34,0.00027397,3]
[368472824,1751189438805,-490.0,0.00027397,3]
[368472826,1751189438815,-490.0,0.00027397,3]
[368472828,1751189438825,-500.0,0.00027397,3]
[368472830,1751189438835,-490.0,0.00027397,3]
[368472832,1751189438846,-647.97,0.00027397,3]
[368472835,1751189438856,-490.0,0.00027397,3]
[368472836,1751189438869,-490.0,0.00027397,3]
[368472838,1751189438878,-490.0,0.00027397,3]
[368472840,1751189438887,-490.0,0.00027397,3]
[368472842,1751189438896,-490.0,0.00027397,3]
[368472844,1751189438906,-490.0,0.00027397,3]
[368472846,1751189438915,-490.0,0.00027397,3]
[368472848,1751189438925,-490.0,0.00027397,3]
[368472850,1751189438934,-490.0,0.00027397,3]
[368472853,1751189438944,-490.0,0.00027397,3]
[368472854,1751189438953,-1022.8,0.00027397,3]
[368472856,1751189438963,-490.0,0.00027397,3]
[368472858,1751189438972,-490.0,0.00027397,3]
[368472860,1751189438981,-786.24,0.00027397,3]
[368472862,1751189438990,-490.0,0.00027397,3]
[368472864,1751189438999,-490.0,0.00027397,3]
[368472866,1751189439009,-490.0,0.00027397,3]
[368472868,1751189439018,-490.0,0.00027397,3]
[368472870,1751189439027,-490.0,0.00027397,3]
[368472872,1751189439036,-490.0,0.00027397,3]
[368472874,1751189439046,-490.0,0.00027397,3]
[368472876,1751189439055,-490.0,0.00027397,3]
[368472878,1751189439064,-490.0,0.00027397,3]
[368472880,1751189439073,-490.0,0.00027397,3]
[368472882,1751189439082,-1418.76,0.00027397,3]
[368472884,1751189439092,-490.0,0.00027397,3]
[368472886,1751189439102,-490.0,0.00027397,3]
[368472888,1751189439111,-1168.69,0.00027397,3]
[368472890,1751189439119,-301.67662912,0.00027397,3]
[368472892,1751189439128,-490.0,0.00027397,3]
[368472894,1751189439138,-490.0,0.00027397,3]
[368472896,1751189439147,-490.0,0.00027397,3]
[368472898,1751189439155,-490.0,0.00027397,3]
[368472900,1751189439164,-490.0,0.00027397,3]
[368472902,1751189439173,-200.0,0.00027397,2]
[368472904,1751189439183,-490.0,0.00027397,3]
[368472906,1751189439192,-490.0,0.00027397,3]
[368472908,1751189439200,-490.0,0.00027397,3]
[368472910,1751189439209,-490.0,0.00027397,3]
[368472912,1751189439219,-490.0,0.00027397,3]
[368472914,1751189439228,-490.0,0.00027397,3]
[368472916,1751189439237,-702.38,0.00027397,3]
[368472918,1751189439246,-490.0,0.00027397,3]
[368472920,1751189439255,-490.0,0.00027397,3]
[368472922,1751189439264,-490.0,0.00027397,3]
[368472924,1751189439273,-490.0,0.00027397,3]
[368472926,1751189439283,-490.0,0.00027397,3]
[368472928,1751189439292,-490.0,0.00027397,3]
[368472930,1751189439301,-490.0,0.00027397,3]
[368472932,1751189439310,-490.0,0.00027397,3]
[368472934,1751189439319,-1069.32,0.00027397,3]
[368472936,1751189439328,-785.66,0.00027397,3]
[368472938,1751189439337,-695.38,0.00027397,3]
[368472940,1751189439347,-490.0,0.00027397,3]
[368472942,1751189439356,-490.0,0.00027397,3]
[368472944,1751189439365,-490.0,0.00027397,3]
[368472946,1751189439373,-490.0,0.00027397,3]
[368472948,1751189439382,-490.0,0.00027397,3]
[368472950,1751189439392,-490.0,0.00027397,3]
[368472952,1751189439400,-490.0,0.00027397,3]
[368472954,1751189439409,-490.0,0.00027397,3]
[368472956,1751189439419,-629.52,0.00027397,3]
[368472958,1751189439427,-490.0,0.00027397,3]
[368472960,1751189439436,-490.0,0.00027397,3]
[368472961,1751189439445,-1047.3,0.00027397,3]
[368472962,1751189439454,-1258.53,0.00027397,3]
[368472963,1751189439463,-823.69,0.00027397,3]
[368472964,1751189439471,-578.63,0.00027397,3]
[368472965,1751189439481,-677.33,0.00027397,3]
[368472966,1751189439490,-490.0,0.00027397,3]
[368472967,1751189439499,-977.62,0.00027397,3]
[368472968,1751189439508,-490.0,0.00027397,3]
[368472969,1751189439517,-490.0,0.00027397,3]
[368472970,1751189439526,-490.0,0.00027397,3]
[368472971,1751189439535,-490.0,0.00027397,3]
[368472972,1751189439544,-490.0,0.00027397,3]
[368472973,1751189439552,-490.0,0.00027397,3]
[368472974,1751189439561,-490.0,0.00027397,3]
[368472975,1751189439570,-490.0,0.00027397,3]
[368472976,1751189439579,-490.0,0.00027397,3]
[368472977,1751189439587,-490.0,0.00027397,3]
[368472978,1751189439596,-545.72,0.00027397,3]
[368472979,1751189439605,-288.52700229,0.00027397,3]
[368472981,1751189439614,-490.0,0.00027397,3]
[368472983,1751189439624,-490.0,0.00027397,3]
[368472985,1751189439633,-1605.81,0.00027397,3]
[368472987,1751189439643,-490.0,0.00027397,3]
[368472989,1751189439652,-490.0,0.00027397,3]
[368472991,1751189439661,-490.0,0.00027397,3]
[368472993,1751189439671,-490.0,0.00027397,3]
[368472995,1751189439680,-490.0,0.00027397,3]
[368472997,1751189439689,-619.54,0.00027397,3]
[368472999,1751189439698,-490.0,0.00027397,3]
[368473001,1751189439707,-490.0,0.00027397,3]
[368473002,1751189439716,-490.0,0.00027397,3]
[368473004,1751189439725,-490.0,0.00027397,3]
[368473006,1751189439734,-490.0,0.00027397,3]
[368473008,1751189439743,-804.6,0.00027397,3]
[368473010,1751189439752,-1438.38,0.00027397,3]
[368473012,1751189439762,-490.0,0.00027397,3]
[368473014,1751189439771,-514.24,0.00027397,3]
[368473016,1751189439780,-601.49,0.00027397,3]
[368473017,1751189439789,-490.0,0.00027397,3]
[368473019,1751189439799,-490.0,0.00027397,3]
[368473021,1751189439808,-490.0,0.00027397,3]
[368473023,1751189439817,-155.261825,0.00027397,3]
[368473025,1751189439827,-490.0,0.00027397,3]
[368473027,1751189439835,-490.0,0.00027397,3]
[368473029,1751189439844,-1064.38,0.00027397,3]
[368473030,1751189439854,-490.0,0.00027397,3]
[368473031,1751189439866,-490.0,0.00027397,3]
[368473032,1751189439877,-490.0,0.00027397,3]
[368473033,1751189439886,-599.65,0.00027397,3]
[368473034,1751189439896,-490.0,0.00027397,3]
[368473035,1751189439906,-736.42,0.00027397,3]
[368473036,1751189439916,-490.0,0.00027397,3]
[368473037,1751189439925,-1109.15,0.00027397,3]
[368473038,1751189439938,-490.0,0.00027397,3]
[368473039,1751189439948,-490.0,0.00027397,3]
[368473040,1751189439958,-490.0,0.00027397,3]
[368473041,1751189439967,-490.0,0.00027397,3]
[368473042,1751189439976,-981.7,0.00027397,3]
[368473043,1751189439989,-490.0,0.00027397,3]
[368473044,1751189439999,-490.0,0.00027397,3]
[368473045,1751189440009,-490.0,0.00027397,3]
[368473046,1751189440018,-490.0,0.00027397,3]
[368473047,1751189440027,-490.0,0.00027397,3]
[368473048,1751189440036,-490.0,0.00027397,3]
[368473049,1751189440046,-490.0,0.00027397,3]
[368473050,1751189440055,-490.0,0.00027397,3]
[368473052,1751189440065,-490.0,0.00027397,3]
[368473054,1751189440074,-522.61,0.00027397,3]
[368473056,1751189440082,-490.0,0.00027397,3]
[368473058,1751189440091,-726.4,0.00027397,3]
[368473060,1751189440100,-493.38719569,0.00027397,3]
[368473061,1751189440109,-490.0,0.00027397,3]
[368473063,1751189440118,-490.0,0.00027397,3]
[368473065,1751189440128,-490.0,0.00027397,3]
[368473067,1751189440138,-490.0,0.00027397,3]
[368473069,1751189440147,-490.0,0.00027397,3]
[368473071,1751189440156,-490.0,0.00027397,3]
[368473073,1751189440165,-490.0,0.00027397,3]
[368473075,1751189440174,-528.76,0.00027397,3]
[368473077,1751189440182,-490.0,0.00027397,3]
[368473079,1751189440191,-490.0,0.00027397,3]
[368473081,1751189440201,-490.0,0.00027397,3]
[368473083,1751189440210,-749.48,0.00027397,3]
[368473085,1751189440219,-490.0,0.00027397,3]
[368473087,1751189440228,-490.0,0.00027397,3]
[368473088,1751189440237,-490.0,0.00027397,3]
[368473090,1751189440245,-1154.83,0.00027397,3]
[368473092,1751189440255,-1285.95,0.00027397,3]
[368473094,1751189440263,-490.0,0.00027397,3]
[368473096,1751189440273,-490.0,0.00027397,3]
[368473098,1751189440283,-490.0,0.00027397,3]
[368473100,1751189440293,-654.43,0.00027397,3]
[368473102,1751189440302,-490.0,0.00027397,3]
[368473104,1751189440312,-460.8941265,0.00027397,3]
[368473106,1751189440321,-1002.88,0.00027397,3]
[368473108,1751189440330,-490.0,0.00027397,3]
[368473110,1751189440339,-490.0,0.00027397,3]
[368473112,1751189440349,-490.0,0.00027397,3]
[368473114,1751189440359,-1646.37,0.00027397,3]
[368473116,1751189440368,-490.0,0.00027397,3]
[368473118,1751189440377,-568.05,0.00027397,3]
[368473120,1751189440387,-490.0,0.00027397,3]
[368473122,1751189440396,-490.0,0.00027397,3]
[368473123,1751189440407,-490.0,0.00027397,3]
[368473125,1751189440416,-490.0,0.00027397,3]
[368473127,1751189440426,-2303.01,0.00027397,3]
[368473129,1751189440435,-490.0,0.00027397,3]
[368473131,1751189440444,-490.0,0.00027397,3]
[368473133,1751189440453,-1151.7,0.00027397,3]
[368473135,1751189440462,-490.0,0.00027397,3]
[368473137,1751189440471,-490.0,0.00027397,3]
[368473139,1751189440480,-490.0,0.00027397,3]
[368473141,1751189440489,-490.0,0.00027397,3]
[368473143,1751189440498,-490.0,0.00027397,3]
[368473145,1751189440508,-490.0,0.00027397,3]
[368473147,1751189440517,-490.0,0.00027397,3]
[368473149,1751189440527,-2763.49,0.00027397,3]
[368473151,1751189440536,-490.0,0.00027397,3]
[368473153,1751189440545,-349.34671164,0.00027397,3]
[368473155,1751189440555,-520.71,0.00027397,3]
[368473157,1751189440564,-490.0,0.00027397,3]
[368473159,1751189440574,-490.0,0.00027397,3]
[368473161,1751189440583,-515.29,0.00027397,3]
[368473163,1751189440592,-490.0,0.00027397,3]
[368473165,1751189440601,-2125.71,0.00027397,3]
[368473167,1751189440610,-490.0,0.00027397,3]
[368473169,1751189440619,-2217.84,0.00027397,3]
[368473171,1751189440629,-490.0,0.00027397,3]
[368473173,1751189440638,-490.0,0.00027397,3]
[368473175,1751189440648,-567.92,0.00027397,3]
[368473177,1751189440657,-490.0,0.00027397,3]
[368473179,1751189440666,-1303.17,0.00027397,3]
[368473180,1751189440676,-1350.27,0.00027397,3]
[368473182,1751189440685,-490.0,0.00027397,3]
[368473184,1751189440694,-490.0,0.00027397,3]
[368473186,1751189440703,-490.0,0.00027397,3]
[368473188,1751189440711,-490.0,0.00027397,3]
[368473190,1751189440720,-490.0,0.00027397,3]
[368473192,1751189440730,-490.0,0.00027397,3]
[368473194,1751189440739,-2005.01,0.00027397,3]
[368473196,1751189440748,-1171.27,0.00027397,3]
[368473198,1751189440757,-490.0,0.00027397,3]
[368473200,1751189440766,-490.0,0.00027397,3]
[368473202,1751189440775,-490.0,0.00027397,3]
[368473204,1751189440784,-490.0,0.00027397,3]
[368473206,1751189440793,-599.79,0.00027397,3]
[368473208,1751189440803,-490.0,0.00027397,3]
[368473210,1751189440813,-490.0,0.00027397,3]
[368473212,1751189440822,-490.0,0.00027397,3]
[368473214,1751189440831,-1337.18,0.00027397,3]
[368473216,1751189440840,-1337.18,0.00027397,3]
[368473218,1751189440849,-940.81,0.00027397,3]
[368473220,1751189440860,-490.0,0.00027397,3]
[368473221,1751189440871,-500.0,0.00027397,3]
[368473223,1751189440881,-500.0,0.00027397,3]
[368473225,1751189440890,-170.58697528,0.00027397,3]
[368473227,1751189440899,-597.68,0.00027397,3]
[368473229,1751189440908,-2500.0,0.00027397,14]
[368473231,1751189440919,-490.0,0.00027397,3]
[368473233,1751189440928,-490.0,0.00027397,3]
[368473235,1751189440938,-490.0,0.00027397,3]
[368473238,1751189440948,-374.82608393,0.00027397,3]
[368473240,1751189440958,-490.0,0.00027397,3]
[368473242,1751189440967,-543.4,0.00027397,3]
[368473244,1751189440977,-676.2,0.00027397,3]
[368473246,1751189440987,-490.0,0.00027397,3]
[368473248,1751189440997,-490.0,0.00027397,3]
[368473250,1751189441007,-932.13,0.00027397,3]
[368473252,1751189441017,-1152.98,0.00027397,3]
[368473254,1751189441026,-490.0,0.00027397,3]
[368473256,1751189441036,-490.0,0.00027397,3]
[368473257,1751189441045,-490.0,0.00027397,3]
[368473259,1751189441055,-490.0,0.00027397,3]
[368473261,1751189441065,-490.0,0.00027397,3]
[368473263,1751189441075,-490.0,0.00027397,3]
[368473265,1751189441084,-490.0,0.00027397,3]
[368473267,1751189441093,-1140.97,0.00027397,3]
[368473269,1751189441103,-529.0,0.00027397,3]
[368473271,1751189441113,-490.0,0.00027397,3]
[368473273,1751189441122,-840.26,0.00027397,3]
[368473275,1751189441132,-490.0,0.00027397,3]
[368473277,1751189441141,-2285.73,0.00027397,3]
[368473279,1751189441150,-490.0,0.00027397,3]
[368473281,1751189441160,-490.0,0.00027397,3]
[368473283,1751189441169,-490.0,0.00027397,3]
[368473285,1751189441179,-490.0,0.00027397,3]
[368473287,1751189441188,-490.0,0.00027397,3]
[368473289,1751189441198,-1905.89,0.00027397,3]
[368473291,1751189441208,-490.0,0.00027397,3]
[368473293,1751189441218,-1754.87,0.00027397,3]
[368473295,1751189441227,-2305.01,0.00027397,3]
[368473297,1751189441237,-490.0,0.00027397,3]
[368473299,1751189441247,-1674.7,0.00027397,3]
[368473301,1751189441257,-286.23368172,0.00027397,3]
[368473303,1751189441267,-490.0,0.00027397,3]
[368473305,1751189441276,-533.61,0.00027397,3]
[368473307,1751189441286,-490.0,0.00027397,3]
[368473310,1751189441299,-490.0,0.00027397,3]
[368473312,1751189441309,-2512.54,0.00027397,3]
[368473314,1751189441319,-490.0,0.00027397,3]
[368473316,1751189441329,-490.0,0.00027397,3]
[368473318,1751189441338,-490.0,0.00027397,3]
[368473320,1751189441348,-490.0,0.00027397,3]
[368473322,1751189441357,-490.0,0.00027397,3]
[368473324,1751189441367,-535.19885491,0.00027397,3]
[368473326,1751189441376,-895.46,0.00027397,3]
[368473328,1751189441387,-490.0,0.00027397,3]
[368473330,1751189441396,-490.0,0.00027397,3]
[368473332,1751189441406,-490.0,0.00027397,3]
[368473334,1751189441416,-1717.8,0.00027397,3]
[368473336,1751189441425,-490.0,0.00027397,3]
[368473338,1751189441435,-490.0,0.00027397,3]
[368473340,1751189441445,-490.0,0.00027397,3]
[368473342,1751189441454,-490.0,0.00027397,3]
[368473344,1751189441464,-577.71,0.00027397,3]
[368473346,1751189441474,-1954.52,0.00027397,3]
[368473348,1751189441484,-1067.36,0.00027397,3]
[368473350,1751189441495,-490.0,0.00027397,3]
[368473352,1751189441505,-1012.44,0.00027397,3]
[368473354,1751189441516,-490.0,0.00027397,3]
[368473356,1751189441525,-490.0,0.00027397,3]
[368473358,1751189441534,-490.0,0.00027397,3]
[368473360,1751189441544,-490.0,0.00027397,3]
[368473362,1751189441553,-490.0,0.00027397,3]
[368473364,1751189441563,-490.0,0.00027397,3]
[368473366,1751189441573,-492.61,0.00027397,3]
[368473368,1751189441583,-490.0,0.00027397,3]
[368473370,1751189441593,-490.0,0.00027397,3]
[368473372,1751189441603,-490.0,0.00027397,3]
[368473374,1751189441613,-490.0,0.00027397,3]
[368473376,1751189441623,-683.79,0.00027397,3]
[368473378,1751189441633,-3076.198905,0.00027397,3]
[368473380,1751189441642,-490.0,0.00027397,3]
[368473382,1751189441652,-490.0,0.00027397,3]
[368473385,1751189441663,-490.0,0.00027397,3]
[368473386,1751189441674,-490.0,0.00027397,3]
[368473388,1751189441683,-685.94,0.00027397,3]
[368473391,1751189441694,-570.80091291,0.00027397,3]
[368473393,1751189441703,-1007.44,0.00027397,3]
[368473395,1751189441713,-490.0,0.00027397,3]
[368473397,1751189441722,-581.23,0.00027397,3]
[368473399,1751189441733,-490.0,0.00027397,3]
[368473401,1751189441743,-490.0,0.00027397,3]
[368473403,1751189441753,-490.0,0.00027397,3]
[368473405,1751189441762,-498.1,0.00027397,3]
[368473407,1751189441772,-490.0,0.00027397,3]
[368473409,1751189441782,-538.13,0.00027397,3]
[368473411,1751189441792,-490.0,0.00027397,3]
[368473413,1751189441802,-490.0,0.00027397,3]
[368473415,1751189441812,-616.46,0.00027397,3]
[368473417,1751189441823,-848.59,0.00027397,3]
[368473419,1751189441834,-490.0,0.00027397,3]
[368473421,1751189441844,-674.2,0.00027397,3]
[368473423,1751189441854,-490.0,0.00027397,3]
[368473425,1751189441868,-1204.2,0.00027397,3]
[368473427,1751189441878,-490.0,0.00027397,3]
[368473429,1751189441888,-497.12280497,0.00027397,3]
[368473431,1751189441898,-490.0,0.00027397,3]
[368473433,1751189441910,-490.0,0.00027397,3]
[368473436,1751189441920,-490.0,0.00027397,3]
[368473438,1751189441930,-596.46,0.00027397,3]
[368473440,1751189441941,-490.0,0.00027397,3]
[368473442,1751189441952,-490.0,0.00027397,3]
[368473444,1751189441961,-571.89,0.00027397,3]
[368473446,1751189441970,-495.46273633,0.00027397,3]
[368473448,1751189441980,-936.57,0.00027397,3]
[368473450,1751189441990,-490.0,0.00027397,3]
[368473452,1751189441999,-490.0,0.00027397,3]
[368473454,1751189442009,-490.0,0.00027397,3]
[368473456,1751189442018,-490.0,0.00027397,3]
[368473458,1751189442028,-565.46,0.00027397,3]
[368473460,1751189442038,-1238.03,0.00027397,3]
[368473462,1751189442048,-462.35051923,0.00027397,3]
[368473464,1751189442058,-1522.66,0.00027397,3]
[368473466,1751189442067,-558.78,0.00027397,3]
[368473468,1751189442077,-490.0,0.00027397,3]
[368473470,1751189442087,-490.0,0.00027397,3]
[368473472,1751189442097,-549.09,0.00027397,3]
[368473474,1751189442107,-499.63,0.00027397,3]
[368473476,1751189442116,-490.0,0.00027397,3]
[368473478,1751189442126,-1868.14,0.00027397,3]
[368473480,1751189442135,-197.59148099,0.00027397,3]
[368473482,1751189442145,-490.0,0.00027397,3]
[368473484,1751189442154,-490.0,0.00027397,3]
[368473486,1751189442165,-490.0,0.00027397,3]
[368473488,1751189442175,-484.36518451,0.00027397,3]
[368473490,1751189442186,-495.1301241,0.00027397,3]
[368473492,1751189442196,-1918.73,0.00027397,3]
[368473494,1751189442206,-1030.11,0.00027397,3]
[368473496,1751189442215,-490.0,0.00027397,3]
[368473498,1751189442225,-490.0,0.00027397,3]
[368473500,1751189442235,-2189.86,0.00027397,3]
[368473502,1751189442245,-490.0,0.00027397,3]
[368473505,1751189442255,-1023.79,0.00027397,3]
[368473507,1751189442265,-1785.13,0.00027397,3]
[368473509,1751189442275,-2199.62,0.00027397,3]
[368473511,1751189442284,-490.0,0.00027397,3]
[368473513,1751189442294,-799.6,0.00027397,3]
[368473515,1751189442304,-490.0,0.00027397,3]
[368473517,1751189442314,-490.0,0.00027397,3]
[368473519,1751189442324,-490.0,0.00027397,3]
[368473521,1751189442333,-1233.03,0.00027397,3]
[368473523,1751189442343,-490.0,0.00027397,3]
[368473525,1751189442353,-490.0,0.00027397,3]
[368473527,1751189442363,-2446.65,0.00027397,3]
[368473529,1751189442373,-1401.25,0.00027397,3]
[368473531,1751189442383,-490.0,0.00027397,3]
[368473533,1751189442394,-1026.02,0.00027397,3]
[368473535,1751189442403,-490.0,0.00027397,3]
[368473537,1751189442414,-770.75,0.00027397,3]
[368473540,1751189442424,-826.99,0.00027397,3]
[368473542,1751189442435,-490.0,0.00027397,3]
[368473543,1751189442445,-490.0,0.00027397,3]
[368473546,1751189442455,-982.14,0.00027397,3]
[368473548,1751189442465,-490.0,0.00027397,3]
[368473550,1751189442475,-493.03,0.00027397,3]
[368473552,1751189442485,-708.82,0.00027397,3]
[368473554,1751189442495,-1855.46,0.00027397,3]
[368473556,1751189442505,-490.0,0.00027397,3]
[368473558,1751189442515,-638.55,0.00027397,3]
[368473560,1751189442526,-1059.21,0.00027397,3]
[368473562,1751189442536,-598.49,0.00027397,3]
[368473564,1751189442546,-1228.98,0.00027397,3]
[368473566,1751189442556,-490.0,0.00027397,3]
[368473568,1751189442566,-478.90588852,0.00027397,3]
[368473570,1751189442576,-1000.0,0.00027397,3]
[368473572,1751189442585,-490.0,0.00027397,3]
[368473574,1751189442595,-1065.26,0.00027397,3]
[368473576,1751189442605,-1584.56,0.00027397,3]
[368473579,1751189442615,-2736.96,0.00027397,3]
[368473581,1751189442626,-665.95,0.00027397,3]
[368473583,1751189442636,-490.0,0.00027397,3]
[368473585,1751189442645,-584.21,0.00027397,3]
[368473587,1751189442655,-495.1,0.00027397,3]
[368473589,1751189442665,-732.39,0.00027397,3]
[368473591,1751189442675,-490.0,0.00027397,3]
[368473593,1751189442685,-787.76,0.00027397,3]
[368473595,1751189442695,-490.0,0.00027397,3]
[368473597,1751189442705,-490.0,0.00027397,3]
[368473599,1751189442715,-490.0,0.00027397,3]
[368473601,1751189442726,-490.0,0.00027397,3]
[368473603,1751189442737,-490.0,0.00027397,3]
[368473605,1751189442747,-490.0,0.00027397,3]
[368473607,1751189442757,-490.0,0.00027397,3]
[368473609,1751189442767,-490.0,0.00027397,3]
[368473611,1751189442777,-1026.46,0.00027397,3]
[368473613,1751189442787,-490.0,0.00027397,3]
[368473615,1751189442797,-1575.91,0.00027397,3]
[368473617,1751189442806,-490.0,0.00027397,3]
[368473619,1751189442816,-1121.92,0.00027397,3]
[368473621,1751189442826,-490.0,0.00027397,3]
[368473623,1751189442836,-490.0,0.00027397,3]
[368473625,1751189442846,-1690.85,0.00027397,3]
[368473627,1751189442856,-490.0,0.00027397,3]
[368473630,1751189442869,-490.0,0.00027397,3]
[368473632,1751189442880,-490.0,0.00027397,3]
[368473634,1751189442890,-2761.07,0.00027397,3]
[368473636,1751189442899,-531.49,0.00027397,3]
[368473638,1751189442909,-1526.52,0.00027397,3]
[368473640,1751189442919,-490.0,0.00027397,3]
[368473642,1751189442928,-490.0,0.00027397,3]
[368473644,1751189442938,-1694.31,0.00027397,3]
[368473646,1751189442948,-702.41,0.00027397,3]
[368473648,1751189442957,-1981.2,0.00027397,3]
[368473650,1751189442967,-542.82463537,0.00027397,3]
[368473652,1751189442976,-490.0,0.00027397,3]
[368473654,1751189442987,-490.0,0.00027397,3]
[368473656,1751189442997,-542.76086041,0.00027397,3]
[368473658,1751189443007,-490.0,0.00027397,3]
[368473660,1751189443017,-508.18,0.00027397,3]
[368473662,1751189443028,-624.28,0.00027397,3]
[368473664,1751189443038,-490.0,0.00027397,3]
[368473667,1751189443047,-490.0,0.00027397,3]
[368473669,1751189443058,-1627.23,0.00027397,3]
[368473671,1751189443068,-490.0,0.00027397,3]
[368473673,1751189443078,-490.0,0.00027397,3]
[368473675,1751189443088,-490.0,0.00027397,3]
[368473677,1751189443098,-518.99,0.00027397,3]
[368473679,1751189443107,-1327.19,0.00027397,3]
[368473681,1751189443117,-490.0,0.00027397,3]
[368473683,1751189443127,-490.0,0.00027397,3]
[368473685,1751189443137,-490.0,0.00027397,3]
[368473687,1751189443147,-2432.32,0.00027397,3]